fUSD/lending_fUSD_20241221
["ID","MTS","AMOUNT","RATE_DAILY","PERIOD"]
[346222741,1734778254385,-500.0,0.00019726,2]
[346222742,1734778254394,-500.0,0.00019726,2]
[346222743,1734778254404,-500.0,0.00019726,2]
[346222744,1734778254414,-500.0,0.00019726,2]
[346222745,1734778254423,-500.0,0.00019726,2]
[346222746,1734778254433,-500.0,0.00019726,2]
[346222747,1734778254443,-500.0,0.00019726,2]
[346222748,1734778254454,-500.0,0.00019726,2]
[346222749,1734778254464,-509.58224786,0.00019726,2]
[346222750,1734778254475,-500.0,0.00019726,2]
[346222751,1734778254484,-408.65932878,0.00019726,2]
[346222752,1734778254494,-500.0,0.00019726,2]
[346222753,1734778254503,-500.0,0.00019726,2]
[346222754,1734778254512,-500.0,0.00019726,2]
[346222755,1734778254522,-504.3923909,0.00019726,2]
[346222756,1734778254531,-500.0,0.00019726,2]
[346222757,1734778254540,-500.0,0.00019726,2]
[346222758,1734778254550,-500.0,0.00019726,2]
[346222759,1734778254559,-500.0,0.00019726,2]
[346222760,1734778254569,-500.0,0.00019726,2]
[346222761,1734778254579,-500.0,0.00019726,2]
[346222762,1734778254588,-500.0,0.00019726,2]
[346222763,1734778254598,-500.0,0.00019726,2]
[346222764,1734778254607,-500.0,0.00019726,2]
[346222765,1734778254617,-500.0,0.00019726,2]
[346222766,1734778254626,-500.0,0.00019726,2]
[346222767,1734778254636,-366.88100906,0.00019726,2]
[346222768,1734778254646,-500.0,0.00019726,2]
[346222769,1734778254655,-500.0,0.00019726,2]
[346222770,1734778254664,-500.0,0.00019726,2]
[346222771,1734778254674,-676.59,0.00019726,2]
[346222772,1734778254684,-500.0,0.00019726,2]
[346222773,1734778254693,-500.0,0.00019726,2]
[346222774,1734778254703,-500.0,0.00019726,2]
[346222775,1734778254713,-503.77509053,0.00019726,2]
[346222776,1734778254723,-500.0,0.00019726,2]
[346222777,1734778254732,-500.0,0.00019726,2]
[346222778,1734778254742,-500.0,0.00019726,2]
[346222779,1734778254752,-500.0,0.00019726,2]
[346222780,1734778254762,-500.0,0.00019726,2]
[346222781,1734778254772,-500.0,0.00019726,2]
[346222782,1734778254782,-552.62749987,0.00019726,2]
[346222783,1734778254792,-500.0,0.00019726,2]
[346222784,1734778254801,-500.0,0.00019726,2]
[346222785,1734778254813,-500.0,0.00019726,2]
[346222786,1734778254823,-500.0,0.00019726,2]
[346222787,1734778254832,-500.0,0.00019726,2]
[346222788,1734778254843,-500.0,0.00019726,2]
[346222789,1734778254860,-500.0,0.00019726,2]
[346222790,1734778254870,-500.0,0.00019726,2]
[346222791,1734778254880,-500.0,0.00019726,2]
[346222792,1734778254891,-500.0,0.00019726,2]
[346222793,1734778254901,-500.0,0.00019726,2]
[346222794,1734778254910,-500.0,0.00019726,2]
[346222795,1734778254920,-500.0,0.00019726,2]
[346222796,1734778254930,-500.0,0.00019726,2]
[346222797,1734778254940,-500.0,0.00019726,2]
[346222798,1734778254950,-500.0,0.00019726,2]
[346222799,1734778254962,-500.0,0.00019726,2]
[346222800,1734778254972,-441.11132204,0.00019726,2]
[346222801,1734778254982,-500.0,0.00019726,2]
[346222802,1734778254992,-500.0,0.00019726,2]
[346222803,1734778255002,-500.0,0.00019726,2]
[346222804,1734778255011,-500.0,0.00019726,2]
[346222805,1734778255021,-500.0,0.00019726,2]
[346222806,1734778255031,-500.0,0.00019726,2]
[346222807,1734778255114,-500.0,0.00019726,2]
[346222808,1734778255124,-259.06602386,0.00019726,2]
[346222809,1734778255133,-500.0,0.00019726,2]
[346222810,1734778255143,-500.0,0.00019726,2]
[346222811,1734778255152,-500.0,0.00019726,2]
[346222812,1734778255161,-500.0,0.00019726,2]
[346222813,1734778255170,-500.0,0.00019726,2]
[346222814,1734778255179,-500.0,0.00019726,2]
[346222815,1734778255188,-500.0,0.00019726,2]
[346222816,1734778255198,-500.0,0.00019726,2]
[346222817,1734778255207,-500.0,0.00019726,2]
[346222818,1734778255217,-500.0,0.00019726,2]
[346222819,1734778255226,-500.0,0.00019726,2]
[346222820,1734778255235,-500.0,0.00019726,2]
[346222821,1734778255244,-835.53,0.00019726,2]
[346222822,1734778255257,-500.0,0.00019726,2]
[346222823,1734778255277,-506.62497773,0.00019726,2]
[346222824,1734778255293,-500.0,0.00019726,2]
[346222825,1734778255303,-500.0,0.00019726,2]
[346222826,1734778255312,-500.0,0.00019726,2]
[346222827,1734778255321,-500.0,0.00019726,2]
[346222828,1734778255331,-500.0,0.00019726,2]
[346222829,1734778255340,-609.82,0.00019726,2]
[346222830,1734778255349,-500.0,0.00019726,2]
[346222831,1734778255358,-500.0,0.00019726,2]
[346222832,1734778255368,-500.0,0.00019726,2]
[346222833,1734778255377,-500.0,0.00019726,2]
[346222834,1734778255386,-500.0,0.00019726,2]
[346222835,1734778255396,-1088.99,0.00019726,2]
[346222836,1734778255405,-500.0,0.00019726,2]
[346222837,1734778255415,-500.0,0.00019726,2]
[346222838,1734778255424,-500.0,0.00019726,2]
[346222839,1734778255434,-500.0,0.00019726,2]
[346222840,1734778255443,-500.0,0.00019726,2]
[346222841,1734778255456,-500.0,0.00019726,2]
[346222842,1734778255466,-500.0,0.00019726,2]
[346222843,1734778255475,-500.0,0.00019726,2]
[346222844,1734778255484,-583.08,0.00019726,2]
[346222845,1734778255493,-1000.0,0.00019726,2]
[346222846,1734778255503,-500.0,0.00019726,2]
[346222847,1734778255512,-263.29761398,0.00019726,2]
[346222848,1734778255521,-500.0,0.00019726,2]
[346222849,1734778255530,-500.0,0.00019726,2]
[346222850,1734778255540,-524.85,0.00019726,2]
[346222851,1734778255549,-500.0,0.00019726,2]
[346222852,1734778255558,-500.0,0.00019726,2]
[346222853,1734778255568,-500.0,0.00019726,2]
[346222854,1734778255577,-500.0,0.00019726,2]
[346222855,1734778255586,-500.0,0.00019726,2]
[346222856,1734778255596,-1108.7,0.00019726,2]
[346222857,1734778255605,-500.0,0.00019726,2]
[346222858,1734778255615,-500.0,0.00019726,2]
[346222859,1734778255624,-500.0,0.00019726,2]
[346222860,1734778255634,-500.0,0.00019726,2]
[346222861,1734778255644,-500.0,0.00019726,2]
[346222862,1734778255654,-619.25070971,0.00019726,2]
[346222863,1734778255663,-500.0,0.00019726,2]
[346222864,1734778255672,-500.0,0.00019726,2]
[346222865,1734778255682,-500.0,0.00019726,2]
[346222866,1734778255691,-500.0,0.00019726,2]
[346222867,1734778255700,-614.65,0.00019726,2]
[346222868,1734778255712,-610.7,0.00019726,2]
[346222869,1734778255721,-500.0,0.00019726,2]
[346222870,1734778255730,-500.0,0.00019726,2]
[346222871,1734778255739,-500.0,0.00019726,2]
[346222872,1734778255748,-500.0,0.00019726,2]
[346222873,1734778255757,-500.0,0.00019726,2]
[346222874,1734778255767,-1267.53,0.00019726,2]
[346222875,1734778255776,-500.0,0.00019726,2]
[346222876,1734778255786,-500.0,0.00019726,2]
[346222877,1734778255795,-563.45662107,0.00019726,2]
[346222878,1734778255805,-500.0,0.00019726,2]
[346222879,1734778255819,-732.02,0.00019726,2]
[346222880,1734778255828,-500.0,0.00019726,2]
[346222881,1734778255838,-733.94,0.00019726,2]
[346222882,1734778255848,-500.0,0.00019726,2]
[346222883,1734778255858,-500.0,0.00019726,2]
[346222884,1734778255867,-500.0,0.00019726,2]
[346222885,1734778255877,-500.0,0.00019726,2]
[346222886,1734778255886,-500.0,0.00019726,2]
[346222887,1734778255897,-500.0,0.00019726,2]
[346222888,1734778255907,-500.0,0.00019726,2]
[346222889,1734778255916,-1736.72,0.00019726,2]
[346222890,1734778255926,-830.52,0.00019726,2]
[346222891,1734778255935,-541.92,0.00019726,2]
[346222892,1734778255944,-500.0,0.00019726,2]
[346222893,1734778255954,-500.0,0.00019726,2]
[346222894,1734778255963,-500.0,0.00019726,2]
[346222895,1734778255972,-500.0,0.00019726,2]
[346222896,1734778255982,-500.0,0.00019726,2]
[346222897,1734778255993,-500.0,0.00019726,2]
[346222898,1734778256003,-500.0,0.00019726,2]
[346222899,1734778256012,-500.0,0.00019726,2]
[346222900,1734778256022,-500.0,0.00019726,2]
[346222901,1734778256032,-500.0,0.00019726,2]
[346222902,1734778256042,-500.0,0.00019726,2]
[346222903,1734778256052,-500.0,0.00019726,2]
[346222904,1734778256061,-500.0,0.00019726,2]
[346222905,1734778256071,-540.13,0.00019726,2]
[346222906,1734778256080,-500.0,0.00019726,2]
[346222907,1734778256089,-842.96,0.00019726,2]
[346222908,1734778256099,-942.89,0.00019726,2]
[346222909,1734778256108,-500.0,0.00019726,2]
[346222910,1734778256117,-500.0,0.00019726,2]
[346222911,1734778256126,-500.0,0.00019726,2]
[346222912,1734778256136,-500.0,0.00019726,2]
[346222913,1734778256145,-500.0,0.00019726,2]
[346222914,1734778256155,-500.0,0.00019726,2]
[346222915,1734778256164,-334.79055864,0.00019726,2]
[346222916,1734778256173,-500.0,0.00019726,2]
[346222917,1734778256182,-500.0,0.00019726,2]
[346222918,1734778256192,-500.0,0.00019726,2]
[346222919,1734778256201,-500.0,0.00019726,2]
[346222920,1734778256211,-500.0,0.00019726,2]
[346222921,1734778256220,-500.0,0.00019726,2]
[346222922,1734778256229,-500.0,0.00019726,2]
[346222923,1734778256238,-500.0,0.00019726,2]
[346222924,1734778256247,-500.0,0.00019726,2]
[346222925,1734778256257,-500.0,0.00019726,2]
[346222926,1734778256267,-500.0,0.00019726,2]
[346222927,1734778256275,-500.0,0.00019726,2]
[346222928,1734778256284,-500.0,0.00019726,2]
[346222929,1734778256293,-500.0,0.00019726,2]
[346222930,1734778256303,-536.31,0.00019726,2]
[346222931,1734778256312,-500.0,0.00019726,2]
[346222932,1734778256321,-500.0,0.00019726,2]
[346222933,1734778256331,-500.0,0.00019726,2]
[346222934,1734778256342,-500.0,0.00019726,2]
[346222935,1734778256351,-500.0,0.00019726,2]
[346222936,1734778256360,-1466.98,0.00019726,2]
[346222937,1734778256370,-500.0,0.00019726,2]
[346222938,1734778256379,-500.0,0.00019726,2]
[346222939,1734778256388,-500.0,0.00019726,2]
[346222940,1734778256398,-500.0,0.00019726,2]
[346222941,1734778256407,-500.0,0.00019726,2]
[346222942,1734778256416,-1077.03,0.00019726,2]
[346222943,1734778256425,-500.0,0.00019726,2]
[346222944,1734778256435,-500.0,0.00019726,2]
[346222945,1734778256446,-500.0,0.00019726,2]
[346222946,1734778256456,-500.0,0.00019726,2]
[346222947,1734778256466,-500.0,0.00019726,2]
[346222948,1734778256475,-500.0,0.00019726,2]
[346222949,1734778256484,-500.0,0.00019726,2]
[346222950,1734778256493,-681.71,0.00019726,2]
[346222951,1734778256502,-500.0,0.00019726,2]
[346222952,1734778256511,-500.0,0.00019726,2]
[346222953,1734778256521,-500.0,0.00019726,2]
[346222954,1734778256530,-500.0,0.00019726,2]
[346222955,1734778256539,-500.0,0.00019726,2]
[346222956,1734778256548,-500.0,0.00019726,2]
[346222957,1734778256557,-500.0,0.00019726,2]
[346222958,1734778256567,-500.0,0.00019726,2]
[346222959,1734778256576,-500.0,0.00019726,2]
[346222960,1734778256584,-964.41,0.00019726,2]
[346222961,1734778256594,-500.0,0.00019726,2]
[346222962,1734778256603,-500.0,0.00019726,2]
[346222963,1734778256612,-500.0,0.00019726,2]
[346222964,1734778256621,-500.0,0.00019726,2]
[346222965,1734778256631,-764.68,0.00019726,2]
[346222966,1734778256639,-644.31,0.00019726,2]
[346222967,1734778256648,-500.0,0.00019726,2]
[346222968,1734778256657,-500.0,0.00019726,2]
[346222969,1734778256666,-500.0,0.00019726,2]
[346222970,1734778256675,-500.0,0.00019726,2]
[346222971,1734778256684,-1297.85,0.00019726,2]
[346222972,1734778256693,-500.0,0.00019726,2]
[346222973,1734778256703,-500.0,0.00019726,2]
[346222974,1734778256712,-875.85,0.00019726,2]
[346222975,1734778256722,-1038.62,0.00019726,2]
[346222976,1734778256731,-500.0,0.00019726,2]
[346222977,1734778256740,-500.0,0.00019726,2]
[346222978,1734778256749,-500.0,0.00019726,2]
[346222979,1734778256758,-500.0,0.00019726,2]
[346222980,1734778256767,-611.94499526,0.00019726,2]
[346222981,1734778256776,-500.0,0.00019726,2]
[346222982,1734778256786,-691.0,0.00019726,2]
[346222983,1734778256796,-3751.82,0.00019726,2]
[346222984,1734778256805,-1072.01,0.00019726,2]
[346222985,1734778256819,-500.0,0.00019726,2]
[346222986,1734778256828,-500.0,0.00019726,2]
[346222987,1734778256837,-500.0,0.00019726,2]
[346222988,1734778256846,-500.0,0.00019726,2]
[346222989,1734778256857,-2503.74,0.00019726,2]
[346222990,1734778256866,-500.0,0.00019726,2]
[346222991,1734778256875,-500.0,0.00019726,2]
[346222992,1734778256886,-500.0,0.00019726,2]
[346222993,1734778256896,-500.0,0.00019726,2]
[346222994,1734778256906,-1460.65,0.00019726,2]
[346222995,1734778256915,-791.58,0.00019726,2]
[346222996,1734778256925,-636.08,0.00019726,2]
[346222997,1734778256934,-517.16,0.00019726,2]
[346222998,1734778256944,-547.21,0.00019726,2]
[346222999,1734778256953,-1474.38,0.00019726,2]
[346223000,1734778256963,-1426.97,0.00019726,2]
[346223001,1734778256972,-500.0,0.00019726,2]
[346223002,1734778256981,-500.0,0.00019726,2]
[346223003,1734778256990,-1156.16,0.00019726,2]
[346223004,1734778257000,-500.0,0.00019726,2]
[346223005,1734778257009,-500.0,0.00019726,2]
[346223006,1734778257018,-691.57,0.00019726,2]
[346223007,1734778257028,-500.0,0.00019726,2]
[346223008,1734778257037,-1752.14,0.00019726,2]
[346223009,1734778257046,-1038.31,0.00019726,2]
[346223010,1734778257057,-848.77,0.00019726,2]
[346223011,1734778257066,-500.0,0.00019726,2]
[346223012,1734778257075,-500.0,0.00019726,2]
[346223013,1734778257085,-869.74,0.00019726,2]
[346223014,1734778257094,-7847.92,0.00019726,2]
[346223015,1734778257103,-500.0,0.00019726,2]
[346223016,1734778257112,-500.0,0.00019726,2]
[346223017,1734778257121,-660.54,0.00019726,2]
[346223018,1734778257131,-500.0,0.00019726,2]
[346223019,1734778257140,-500.0,0.00019726,2]
[346223020,1734778257149,-500.0,0.00019726,2]
[346223021,1734778257158,-778.43,0.00019726,2]
[346223022,1734778257167,-842.69,0.00019726,2]
[346223023,1734778257176,-500.0,0.00019726,2]
[346223024,1734778257186,-500.0,0.00019726,2]
[346223025,1734778257195,-500.0,0.00019726,2]
[346223026,1734778257205,-550.19,0.00019726,2]
[346223027,1734778257214,-500.0,0.00019726,2]
[346223028,1734778257224,-500.0,0.00019726,2]
[346223029,1734778257233,-1020.48,0.00019726,2]
[346223030,1734778257243,-500.0,0.00019726,2]
[346223031,1734778257253,-686.13,0.00019726,2]
[346223032,1734778257263,-1570.02,0.00019726,2]
[346223033,1734778257273,-500.0,0.00019726,2]
[346223034,1734778257282,-192.78640451,0.00019726,2]
[346223035,1734778257292,-906.64417233,0.00019726,2]
[346223036,1734778257582,-374.08742053,0.00019726,2]
[346223037,1734778257594,-169.14840714,0.00019726,2]
[346223038,1734778257604,-219.04009483,0.00019726,2]
[346223039,1734778257615,-2304.65990517,0.00019726,2]
[346223040,1734778257624,-500.0,0.00019726,2]
[346223041,1734778257634,-500.0,0.00019726,2]
[346223042,1734778257643,-500.0,0.00019726,2]
[346223043,1734778257653,-648.91,0.00019726,2]
[346223044,1734778257662,-546.46,0.00019726,2]
[346223045,1734778257672,-500.0,0.00019726,2]
[346223046,1734778257681,-500.0,0.00019726,2]
[346223047,1734778257691,-524.86,0.00019726,2]
[346223048,1734778257701,-503.45196941,0.00019726,2]
[346223049,1734778257713,-500.0,0.00019726,2]
[346223050,1734778257722,-500.0,0.00019726,2]
[346223051,1734778257731,-500.0,0.00019726,2]
[346223052,1734778257740,-505.47857242,0.00019726,2]
[346223053,1734778257750,-500.0,0.00019726,2]
[346223054,1734778257759,-500.0,0.00019726,2]
[346223055,1734778257769,-500.0,0.00019726,2]
[346223056,1734778257778,-282.79314208,0.00019726,2]
[346223057,1734778257790,-217.20685792,0.00019726,2]
[346223058,1734778257799,-500.0,0.00019726,2]
[346223059,1734778257810,-99.99174208,0.00019726,2]
[346223060,1734778257908,-400.00825792,0.00019726,2]
[346223061,1734778257918,-902.28,0.00019726,2]
[346223062,1734778257928,-500.0,0.00019726,2]
[346223063,1734778257937,-500.0,0.00019726,2]
[346223064,1734778257946,-593.09,0.00019726,2]
[346223065,1734778257957,-500.0,0.00019726,2]
[346223066,1734778257966,-500.0,0.00019726,2]
[346223067,1734778257976,-2454.59,0.00019726,2]
[346223068,1734778257985,-500.0,0.00019726,2]
[346223069,1734778257994,-500.0,0.00019726,2]
[346223070,1734778258004,-797.54,0.00019726,2]
[346223071,1734778258013,-500.0,0.00019726,2]
[346223072,1734778258022,-248.39598599,0.00019726,2]
[346223073,1734778258031,-500.0,0.00019726,2]
[346223074,1734778258040,-500.0,0.00019726,2]
[346223075,1734778258049,-4712.46,0.00019726,2]
[346223076,1734778258059,-500.0,0.00019726,2]
[346223077,1734778258068,-500.0,0.00019726,2]
[346223078,1734778258077,-7102.63575609,0.00019726,2]
[346223079,1734778258093,-1013.09424391,0.00019726,2]
[346223080,1734778258103,-500.0,0.00019726,2]
[346223081,1734778258113,-291.53034006,0.00019726,2]
[346223082,1734778258126,-865.00965994,0.00019726,2]
[346223083,1734778258135,-500.0,0.00019726,2]
[346223084,1734778258145,-500.0,0.00019726,2]
[346223085,1734778258154,-500.0,0.00019726,2]
[346223086,1734778258163,-500.0,0.00019726,2]
[346223087,1734778258172,-500.0,0.00019726,2]
[346223088,1734778258181,-697.35,0.00019726,2]
[346223089,1734778258191,-500.0,0.00019726,2]
[346223090,1734778258199,-500.0,0.00019726,2]
[346223091,1734778258211,-1617.99,0.00019726,2]
[346223092,1734778258220,-268.40518956,0.00019726,2]
[346223093,1734778258231,-644.49623895,0.00019726,2]
[346223094,1734778258242,-558.28857149,0.00019726,2]
[346223095,1734778258251,-500.0,0.00019726,2]
[346223096,1734778258261,-500.0,0.00019726,2]
[346223097,1734778258271,-500.85,0.00019726,2]
[346223098,1734778258280,-500.0,0.00019726,2]
[346223099,1734778258290,-500.0,0.00019726,2]
[346223100,1734778258299,-636.25,0.00019726,2]
[346223101,1734778258308,-500.0,0.00019726,2]
[346223102,1734778258317,-1153.07,0.00019726,2]
[346223103,1734778258326,-785.96,0.00019726,2]
[346223104,1734778258335,-500.0,0.00019726,2]
[346223105,1734778258344,-500.0,0.00019726,2]
[346223106,1734778258355,-500.0,0.00019726,2]
[346223107,1734778258368,-500.0,0.00019726,2]
[346223108,1734778258377,-1882.92411,0.0001977,2]
[346223109,1734778258387,-1503.89641431,0.0001978,2]
[346223110,1734778258396,-191.41088728,0.000198,2]
[346223111,1734778258508,-353.526063,0.000198,2]
[346223112,1734778258520,-3538.06304972,0.000198,2]
[346223113,1734778258541,-928.58621524,0.00019808,2]
[346223114,1734778258561,-468.12218461,0.00019879,2]
[346223115,1734778258570,-8256.84654936,0.00019879,2]
[346223116,1734778258581,-646.28,0.00019879,2]
[346223117,1734778258592,-1041.06779506,0.00019879,2]
[346223118,1734778258611,-324.84268997,0.00019879,2]
[346223119,1734778258621,-177.36425035,0.00019885,5]
[346223120,1734778258632,-495.63574965,0.00019885,5]
[346223121,1734778258642,-150.0,0.00019891,2]
[346223122,1734778258652,-928.58621524,0.00019899,2]
[346223123,1734778258662,-6911.15683966,0.000199,2]
[346223124,1734778258671,-500.0,0.00019973,2]
[346223125,1734778258680,-500.0,0.00019973,2]
[346223126,1734778258690,-200.42081539,0.00019973,2]
[346223127,1734778258700,-198.77698312,0.00019973,2]
[346223128,1734778258710,-200.26995348,0.00019973,2]
[346223129,1734778258720,-202.58318478,0.00019973,2]
[346223130,1734778258729,-160.05796035,0.00019973,2]
[346223131,1734778258739,-500.0,0.00019977,2]
[346223132,1734778258748,-500.0,0.00019977,2]
[346223133,1734778258758,-2431.31229833,0.00019978,3]
[346223134,1734778258770,-2014.02000004,0.00019978,3]
[346223135,1734778258785,-3921.81580609,0.00019978,3]
[346223136,1734778258796,-1136.75452032,0.00019978,3]
[346223137,1734778269698,305.36,0.00010137,2]
[346223138,1734778269906,305.36,0.00016813,2]
[346223145,1734778974738,76.55554547,0.000199,30]
[346223146,1734779010339,617.13,0.00016081,2]
[346223149,1734779194437,250.0,0.00017941,2]
[346223151,1734779256859,246.69469845,0.00017966,2]
[346223152,1734779261863,246.69469845,0.00017988,2]
[346223153,1734779274643,192.68,0.00017871,2]
[346223155,1734779333228,1000.0,0.00017962,2]
[346223156,1734779340934,200.0,0.00017962,2]
[346223164,1734779431998,-199.17472645,0.0001805,2]
[346223165,1734779432008,-1682.0,0.00018066,2]
[346223166,1734779432019,-1006.86,0.0001811,2]
[346223167,1734779432029,-250.0,0.0001815,2]
[346223168,1734779432040,-177.47,0.00018166,2]
[346223169,1734779432051,-199.17472643,0.0001823,2]
[346223170,1734779432063,-6714.01354712,0.00018312,2]
[346223171,1734779432433,-1178.38834293,0.00018312,2]
[346223172,1734779432445,-2961.6858254,0.00018312,2]
[346223173,1734779432507,-430.68063875,0.00018312,2]
[346223174,1734779432520,-905.59839347,0.00018312,2]
[346223175,1734779432534,-464.46153798,0.00018312,2]
[346223176,1734779432582,-51041.17171435,0.00018312,2]
[346223177,1734779432593,-1500.0,0.00018324,2]
[346223178,1734779432604,-617.13,0.00018345,2]
[346223179,1734779432613,-16874.13,0.00018375,2]
[346223180,1734779432624,-199.17472643,0.00018409,2]
[346223181,1734779432634,-23900.0,0.00018413,2]
[346223182,1734779432644,-1852.42,0.00018421,2]
[346223183,1734779432655,-427.35,0.00018421,2]
[346223184,1734779432667,-500.0,0.00018509,2]
[346223185,1734779432679,-200.0,0.00018606,2]
[346223186,1734779432689,-395.86,0.00018904,2]
[346223187,1734779432699,-423.7608418,0.00018943,2]
[346223188,1734779432710,-2500.0,0.00019078,2]
[346223189,1734779432720,-502.79,0.00019087,2]
[346223190,1734779432731,-270.45,0.00019178,2]
[346223191,1734779432742,-500.0,0.00019178,2]
[346223192,1734779432753,-500.0,0.00019178,2]
[346223193,1734779432764,-347.78,0.00019178,2]
[346223194,1734779432775,-500.0,0.00019178,2]
[346223195,1734779432786,-500.0,0.00019178,2]
[346223197,1734779432797,-500.0,0.00019178,2]
[346223199,1734779432807,-500.0,0.00019178,2]
[346223201,1734779432818,-479.7917515,0.00019178,2]
[346223203,1734779432828,-500.0,0.00019178,2]
[346223205,1734779432838,-280.13513395,0.00019178,2]
[346223206,1734779432849,-500.0,0.00019178,2]
[346223207,1734779432859,-500.0,0.00019178,2]
[346223208,1734779432869,-500.0,0.00019178,2]
[346223210,1734779432879,-500.0,0.00019178,2]
[346223211,1734779432890,-500.0,0.00019178,2]
[346223212,1734779432901,-500.0,0.00019178,2]
[346223213,1734779432911,-457.89009898,0.00019178,2]
[346223214,1734779432921,-500.0,0.00019178,2]
[346223215,1734779432933,-500.0,0.00019178,2]
[346223216,1734779432943,-500.0,0.00019178,2]
[346223218,1734779432953,-513.89054615,0.00019178,2]
[346223220,1734779432964,-500.0,0.00019178,2]
[346223222,1734779432974,-500.0,0.00019178,2]
[346223224,1734779432984,-500.0,0.00019178,2]
[346223226,1734779432995,-503.46652125,0.00019178,2]
[346223228,1734779433005,-500.0,0.00019178,2]
[346223231,1734779433016,-500.0,0.00019178,2]
[346223232,1734779433026,-500.0,0.00019178,2]
[346223233,1734779433037,-500.0,0.00019178,2]
[346223234,1734779433047,-500.0,0.00019178,2]
[346223235,1734779433058,-500.0,0.00019178,2]
[346223236,1734779433068,-500.0,0.00019178,2]
[346223237,1734779433078,-500.0,0.00019178,2]
[346223238,1734779433088,-500.0,0.00019178,2]
[346223239,1734779433099,-500.0,0.00019178,2]
[346223240,1734779433109,-500.0,0.00019178,2]
[346223241,1734779433119,-580.37,0.00019178,2]
[346223242,1734779433130,-500.0,0.00019178,2]
[346223243,1734779433140,-500.0,0.00019178,2]
[346223244,1734779433151,-500.0,0.00019178,2]
[346223245,1734779433164,-500.0,0.00019178,2]
[346223246,1734779433175,-500.0,0.00019178,2]
[346223247,1734779433187,-500.0,0.00019178,2]
[346223248,1734779433199,-500.0,0.00019178,2]
[346223249,1734779433211,-500.0,0.00019178,2]
[346223250,1734779433222,-500.0,0.00019178,2]
[346223251,1734779433235,-523.37,0.00019178,2]
[346223252,1734779433246,-500.0,0.00019178,2]
[346223253,1734779433257,-500.0,0.00019178,2]
[346223254,1734779433269,-500.0,0.00019178,2]
[346223255,1734779433279,-500.0,0.00019178,2]
[346223256,1734779433290,-500.0,0.00019178,2]
[346223257,1734779433300,-500.0,0.00019178,2]
[346223258,1734779433311,-500.0,0.00019178,2]
[346223259,1734779433322,-500.0,0.00019178,2]
[346223260,1734779433332,-500.0,0.00019178,2]
[346223261,1734779433342,-500.0,0.00019178,2]
[346223262,1734779433353,-500.0,0.00019178,2]
[346223263,1734779433365,-500.0,0.00019178,2]
[346223264,1734779433376,-500.0,0.00019178,2]
[346223265,1734779433387,-500.0,0.00019178,2]
[346223266,1734779433398,-514.87802203,0.00019178,2]
[346223267,1734779433409,-500.0,0.00019178,2]
[346223268,1734779433420,-819.31,0.00019178,2]
[346223269,1734779433433,-505.35760948,0.00019178,2]
[346223270,1734779433444,-1536.8,0.00019178,2]
[346223271,1734779433455,-500.0,0.00019178,2]